bitfinex-derivatives/quotes_SOLF0:USTF0_20250720
["timestamp","ask_amount","ask_price","bid_price","bid_amount"]
[1753022836619,5.30968218,181.73,181.7,2.97]
[1753022837015,3.03,181.72,181.69,5.5013]
[1753022837316,3.03,181.72,181.71,2.97]
[1753022837617,2.31495988,181.73,181.71,2.97]
[1753022837811,5.34495988,181.73,181.71,5.5006]
[1753022838009,5.34495988,181.73,181.72,2.97]
[1753022838209,2.31495988,181.73,181.72,2.97]
[1753022838416,2.31495988,181.73,181.72,8.4705]
[1753022838717,2.31495988,181.73,181.72,2.97]
[1753022839419,0.0352777,181.73,181.72,2.97]
[1753022839620,3.0652777,181.73,181.72,2.97]
[1753022840319,0.0352777,181.73,181.72,2.97]
[1753022840721,3.0652777,181.73,181.72,2.97]
[1753022841121,3.0652777,181.73,181.72,8.4705]
[1753022841322,0.0352777,181.73,181.72,8.4705]
[1753022841620,2.27968218,181.76,181.72,2.97]
[1753022841821,5.30968218,181.76,181.75,2.97]
[1753022842018,2.27968218,181.76,181.75,2.97]
[1753022842814,2.27968218,181.76,181.75,8.4696]
[1753022843613,3.03,181.78,181.75,8.4696]
[1753022843815,5.30968218,181.77,181.76,8.4692]
[1753022844824,5.30968218,181.77,181.76,2.97]
[1753022845327,5.30968218,181.77,181.76,8.4693]
[1753022847030,2.27968218,181.77,181.76,8.4693]
[1753022848232,5.24968218,181.77,181.76,8.4693]
[1753022848432,2.27968218,181.77,181.76,8.4693]
[1753022848631,5.24968218,181.79,181.78,8.5685]
[1753022848937,2.27968218,181.79,181.78,8.5685]
[1753022849131,5.24968218,181.81,181.78,3.07]
[1753022849326,5.24968218,181.81,181.8,3.07]
[1753022849737,2.97,181.8,181.79,8.5682]
[1753022851230,2.97,181.8,181.79,3.07]
[1753022851742,2.97,181.8,181.79,8.5684]
[1753022852138,2.97,181.8,181.73,3.07]
[1753022852340,2.27968218,181.76,181.74,3.07]
[1753022852541,2.97,181.75,181.7,4.61896747]
[1753022853044,2.97,181.75,181.71,3.07]
[1753022853340,5.4984,181.79,181.74,5.4996]
[1753022853546,2.27968218,181.8,181.74,3.07]
[1753022853749,2.97,181.79,181.74,3.07]
[1753022854246,2.97,181.79,181.76,3.07]
[1753022854546,2.27968218,181.8,181.79,5.4984]
[1753022854746,5.24968218,181.8,181.79,8.5684]
[1753022855140,2.27968218,181.8,181.78,5.4985]
[1753022855343,2.97,181.79,181.78,5.4985]
[1753022855544,2.97,181.79,181.78,8.5685]
[1753022856848,2.97,181.79,181.78,5.4985]
[1753022857042,2.97,181.79,181.75,0.03473991]
[1753022857248,2.97,181.77,181.75,3.10473991]
[1753022857448,2.27968218,181.78,181.75,8.60403991]
[1753022857642,2.27968218,181.78,181.75,3.07]
[1753022857950,2.97,181.76,181.75,3.07]
[1753022858150,2.97,181.77,181.76,5.4991]
[1753022858350,2.27968218,181.8,181.71,6.89864965]
[1753022858650,2.27968218,181.8,181.72,4.61896747]
[1753022858848,2.97,181.81,181.73,5.34968218]
[1753022859048,2.97,181.81,181.73,2.27968218]
[1753022859243,2.27968218,181.82,181.79,3.07]
[1753022859447,2.97,181.81,181.79,3.07]
[1753022859650,2.97,181.81,181.8,3.07]
[1753022860042,2.97,181.8,181.67,4.61853877]
[1753022860346,2.97,181.8,181.66,3.07]
[1753022860347,2.27968218,181.69,181.66,3.07]
[1753022860550,2.97,181.67,181.66,8.5723]
[1753022860748,2.97,181.67,181.66,3.07]
[1753022861051,2.97,181.67,181.66,3.10577339]
[1753022861852,2.27968218,181.68,181.66,3.10577339]
[1753022862054,5.24968218,181.68,181.67,3.07]
[1753022862454,5.24968218,181.68,181.66,0.03577339]
[1753022862455,2.97,181.67,181.66,0.03577339]
[1753022862854,2.97,181.67,181.66,3.10577339]
[1753022863648,2.97,181.67,181.66,8.60807339]
[1753022863853,2.27968218,181.68,181.67,3.07]
[1753022864052,5.24968218,181.68,181.67,3.07]
[1753022865549,2.97,181.68,181.67,8.572]
[1753022865751,2.27968218,181.75,181.68,3.07]
[1753022866054,2.97,181.74,181.68,3.07]
[1753022866353,2.97,181.73,181.7,5.5009]
[1753022866545,2.97,181.72,181.71,3.07]
[1753022867155,2.27968218,181.75,181.71,5.5008]
[1753022867357,2.97,181.73,181.72,3.07]
[1753022867655,2.97,181.73,181.72,8.5705]
[1753022869948,2.27968218,181.75,181.72,8.5705]
[1753022870155,2.97,181.74,181.73,3.07]
[1753022871456,2.97,181.74,181.73,8.5702]
[1753022871953,2.27968218,181.75,181.74,5.4999]
[1753022872158,5.24968218,181.75,181.74,8.5699]
[1753022872355,5.24968218,181.77,181.74,3.07]
[1753022872659,2.97,181.77,181.74,3.07]
[1753022872853,2.97,181.78,181.74,3.07]
[1753022873053,2.97,181.78,181.74,3.10473608]
[1753022873559,2.97,181.77,181.74,3.10473608]
[1753022874154,2.97,181.77,181.76,3.07]
[1753022874363,2.97,181.8,181.76,3.07]
[1753022874558,2.27968218,181.81,181.76,3.07]
[1753022874757,2.97,181.8,181.76,3.07]
[1753022875155,2.97,181.8,181.79,8.5682]
[1753022876056,2.97,181.8,181.79,3.07]
[1753022876257,2.97,181.79,181.64,3.07]
[1753022876557,2.97,181.63,181.61,5.5035]
[1753022876757,2.97,181.63,181.62,3.07]
[1753022877158,2.97,181.63,181.62,8.5735]
[1753022877453,5.24968218,181.67,181.61,3.07]
[1753022877652,5.24968218,181.67,181.64,3.07]
[1753022877653,2.27968218,181.66,181.64,3.07]
[1753022877962,2.97,181.65,181.64,3.07]
[1753022878262,3.25,181.64,181.62,8.4834]
[1753022878663,3.25,181.65,181.57,2.98]
[1753022878862,3.25,181.65,181.63,5.503]
[1753022879064,3.25,181.64,181.63,8.483]
[1753022879868,5.52968218,181.66,181.64,5.5027]
[1753022880166,5.52968218,181.66,181.64,8.4827]
[1753022880369,5.52968218,181.66,181.64,2.98]
[1753022880559,5.52968218,181.68,181.64,2.98]
[1753022881467,3.25,181.68,181.67,8.482]
[1753022881664,2.27968218,181.69,181.64,0.03498565]
[1753022881864,5.52968218,181.69,181.68,2.98]
[1753022882162,5.52968218,181.69,181.68,8.4815]
[1753022884661,5.52968218,181.69,181.68,5.5015]
[1753022885166,3.25,181.69,181.68,5.5015]
[1753022886169,3.25,181.69,181.67,5.5019]
[1753022887767,3.25,181.69,181.68,8.4816]
[1753022889368,3.25,181.72,181.71,5.5007]
[1753022889562,3.25,181.72,181.71,8.4807]
[1753022890273,3.25,181.72,181.71,5.5007]
[1753022890571,349.0,181.85,181.71,5.5007]
[1753022890572,191.39159017,181.93,181.72,2.98]
[1753022890869,2.27968218,181.86,181.78,2.98]
[1753022891070,3.59064136,181.85,181.81,2.98]
[1753022891271,3.59064136,181.85,181.73,3.72675048]
[1753022891467,3.59064136,181.85,181.8,5.4978]
[1753022891663,3.59064136,181.85,181.79,2.98]
[1753022891867,3.72675048,181.86,181.79,2.98]
[1753022892063,3.72675048,181.86,181.8,0.03550541]
[1753022892271,3.72675048,181.86,181.81,8.4775]
[1753022892474,2.0,181.85,181.81,8.4775]
[1753022892866,2.0,181.85,181.82,5.4974]
[1753022894673,2.0,181.84,181.83,5.4971]
[1753022895768,3.72675048,181.84,181.8,0.03550541]
[1753022896069,2.0,181.83,181.8,0.03550541]
[1753022896266,2.0,181.83,181.8,5.53340541]
[1753022897668,2.0,181.81,181.8,0.03550541]
[1753022897972,2.0,181.81,181.8,3.01550541]
[1753022900377,2.0,181.83,181.81,2.98]
[1753022900672,184.54870042,181.92,181.8,0.03550541]
[1753022900878,2.0,181.87,181.81,2.98]
[1753022901471,5.4958,181.88,181.83,5.4969]
[1753022901776,5.4958,181.88,181.79,3.72675048]
[1753022901777,2.0,181.88,181.85,2.98]
[1753022902079,3.72675048,181.89,181.85,2.98]
[1753022902080,2.0,181.87,181.85,2.98]
[1753022902966,2.0,181.87,181.86,2.98]
[1753022903370,5.4958,181.88,181.84,0.03554781]
[1753022903573,2.0,181.88,181.84,3.01554781]
[1753022903874,2.0,181.86,181.84,3.01554781]
[1753022904370,5.72675048,181.85,181.81,2.98]
[1753022904675,2.0,181.84,181.8,2.98]
[1753022904866,7.4969,181.84,181.75,3.72675048]
[1753022905068,2.0,181.83,181.81,2.98]
[1753022905475,2.0,181.82,181.81,2.98]
[1753022907675,0.03528522,181.83,181.81,2.98]
[1753022907875,0.03528522,181.83,181.82,2.98]
[1753022908277,1.99,181.85,181.74,3.72675048]
[1753022908574,5.71675048,181.85,181.75,3.09]
[1753022908976,0.03573562,181.81,181.75,3.09]
[1753022909777,1.99,181.75,181.64,6.16572536]
[1753022909983,3.72675048,181.71,181.65,3.09]
[1753022910283,5.71675048,181.71,181.65,3.09]
[1753022910581,1.99,181.68,181.66,3.09]
[1753022910877,3.72675048,181.68,181.54,103.42]
[1753022911076,3.72675048,181.65,181.63,3.09]
[1753022911382,2.29191937,181.65,181.64,3.09]
[1753022911577,2.29191937,181.65,181.62,3.09]
[1753022911578,4.28191937,181.65,181.62,3.09]
[1753022911774,2.29191937,181.63,181.62,3.09]
[1753022912172,4.28191937,181.65,181.62,3.09]
[1753022912383,4.28191937,181.65,181.63,3.09]
[1753022913282,7.4926,181.65,181.63,3.09]
[1753022913676,1.99,181.65,181.63,3.09]
[1753022916182,5.76059079,181.66,181.64,3.09]
[1753022918286,3.77059079,181.66,181.65,3.09]
[1753022918689,3.73503472,181.66,181.65,3.09]
[1753022919480,3.73503472,181.68,181.65,3.09]
[1753022919779,0.03554825,181.67,181.65,3.09]
[1753022919983,0.03554825,181.67,181.66,5.5022]
[1753022920282,0.03554825,181.67,181.66,8.5922]
[1753022920480,3.73503472,181.68,181.67,3.09]
[1753022922894,7.4911,181.7,181.67,3.09]
[1753022923089,3.73503472,181.69,181.68,3.09]
[1753022923492,5.73503472,181.69,181.68,3.09]
[1753022923990,3.73503472,181.69,181.68,3.09]
[1753022925692,2.0,181.68,181.66,5.5023]
[1753022925893,2.0,181.67,181.66,3.09]
[1753022926094,5.73503472,181.68,181.66,3.09]
[1753022926296,3.73503472,181.68,181.67,3.09]
[1753022926494,5.73503472,181.68,181.67,3.09]
[1753022926793,3.73503472,181.68,181.67,3.09]
[1753022927099,3.73503472,181.68,181.67,8.592]
[1753022927295,5.73503472,181.68,181.57,3.73503472]
[1753022927495,5.73503472,181.68,181.66,3.09]
[1753022927696,5.73503472,181.68,181.66,8.5922]
[1753022927897,5.73503472,181.68,181.67,3.09]
[1753022928398,3.73503472,181.68,181.67,3.09]
[1753022929100,5.73503472,181.68,181.67,3.09]
[1753022930100,3.73503472,181.68,181.66,5.5022]
[1753022930301,3.73503472,181.68,181.57,3.73503472]
[1753022930302,2.0,181.67,181.58,3.09]
[1753022930700,2.0,181.67,181.64,5.5027]
[1753022930900,2.0,181.67,181.66,3.09]
[1753022931095,3.73503472,181.68,181.64,5.5027]
[1753022931300,5.73503472,181.68,181.67,3.09]
[1753022931898,11.23673472,181.68,181.65,8.5925]
[1753022932101,2.0,181.67,181.66,3.09]
[1753022932301,2.0,181.67,181.64,3.09]
[1753022932508,2.0,181.66,181.65,3.09]
[1753022933004,11.23673472,181.68,181.65,3.09]
[1753022933198,2.29154678,181.66,181.65,3.09]
[1753022933904,4.29154678,181.66,181.65,3.09]
[1753022934301,4.29154678,181.66,181.63,3.09]
[1753022934510,2.0,181.65,181.62,5.5033]
[1753022934802,2.0,181.65,181.64,3.09]
[1753022935205,7.79394678,181.66,181.64,3.09]
[1753022935406,9.79394678,181.66,181.64,3.09]
[1753022935813,9.79394678,181.66,181.63,3.09]
[1753022936012,9.79394678,181.66,181.62,5.5034]
[1753022936210,2.0,181.66,181.65,3.09]
[1753022936412,2.29154678,181.66,181.65,3.09]
[1753022936915,4.29154678,181.66,181.65,3.09]
[1753022937210,9.79384678,181.66,181.65,3.09]
[1753022937515,7.5023,181.66,181.65,3.09]
[1753022937717,9.79384678,181.66,181.65,3.09]
[1753022940911,9.79384678,181.66,181.63,5.503]
[1753022941116,2.29154678,181.64,181.63,8.523]
[1753022941615,7.5023,181.66,181.65,3.02]
[1753022941816,9.79384678,181.66,181.65,3.02]
[1753022942216,4.29154678,181.66,181.65,3.02]
[1753022942513,2.01,181.65,181.63,5.5031]
[1753022942712,2.01,181.63,181.55,3.02]
[1753022942912,2.29154678,181.61,181.6,8.5241]
[1753022944516,4.30154678,181.61,181.53,4.5467802]
[1753022944712,2.29154678,181.57,181.53,4.5467802]
[1753022945216,2.29154678,181.57,181.56,5.5053]
[1753022945711,3.11,181.55,181.53,4.5467802]
[1753022945917,5.40154678,181.55,181.53,4.5467802]
[1753022946213,0.48,181.53,181.39,6.87758831]
[1753022946417,2.29154678,181.55,181.41,2.29154678]
[1753022946418,2.29154678,181.5,181.41,2.29154678]
[1753022946713,0.48,181.49,181.48,5.5075]
[1753022946910,2.29154678,181.49,181.38,3.02]
[1753022947112,2.29154678,181.49,181.35,4.58604153]
[1753022947113,7.79924678,181.49,181.35,4.58604153]
[1753022947420,2.29154678,181.48,181.39,3.02]
[1753022947820,2.29154678,181.48,181.44,5.5089]
[1753022948022,2.29154678,181.48,181.45,3.02]
[1753022948217,2.29154678,181.48,181.38,2.29154678]
[1753022948218,0.48,181.45,181.42,5.5093]
[1753022948411,2.29154678,181.45,181.43,3.02]
[1753022949313,0.48,181.47,181.45,3.02]
[1753022949622,2.29154678,181.46,181.45,3.02]
[1753022950216,0.48,181.49,181.45,3.02]
[1753022950419,2.29154678,181.46,181.43,5.5092]
[1753022950621,2.29154678,181.44,181.3,4.58604153]
[1753022950917,2.29154678,181.44,181.37,3.02]
[1753022951727,2.29154678,181.44,181.43,3.02]
[1753022953919,2.29154678,181.48,181.43,3.02]
[1753022954722,2.29154678,181.46,181.43,3.02]
[1753022955125,2.29154678,181.46,181.45,5.5087]
[1753022955325,2.29154678,181.46,181.45,8.5287]
[1753022956026,2.29154678,181.46,181.45,3.02]
[1753022956726,2.29154678,181.46,181.45,8.5287]
[1753022959318,2.3268171,181.47,181.46,8.5284]
[1753022959724,2.29154678,181.47,181.46,8.5284]
[1753022961629,0.03539097,181.48,181.47,5.508]
[1753022961827,0.03539097,181.48,181.47,8.528]
[1753022961828,2.32693775,181.48,181.47,8.528]
[1753022962928,2.32693775,181.48,181.47,3.02]
[1753022963622,2.32693775,181.48,181.38,2.29154678]
[1753022963623,2.80693775,181.48,181.38,2.29154678]
[1753022963929,0.51539097,181.48,181.46,3.02]
[1753022964728,0.51539097,181.48,181.39,3.02]
[1753022965134,2.29154678,181.46,181.39,3.02]
[1753022965334,2.29154678,181.46,181.42,3.02]
[1753022965836,2.29154678,181.46,181.45,3.02]
[1753022967239,2.29154678,181.46,181.45,8.5287]
[1753022967937,2.29154678,181.46,181.45,3.02]
[1753022968330,0.03515743,181.47,181.45,3.02]
[1753022969537,0.03515743,181.47,181.45,8.5285]
[1753022969733,0.03515743,181.47,181.45,3.02]
[1753022970531,2.32670421,181.47,181.45,3.02]
[1753022970737,2.32670421,181.47,181.46,3.01]
[1753022970938,0.03515743,181.47,181.46,3.01]
[1753022974043,0.51515743,181.47,181.46,3.01]
[1753022974543,0.03515743,181.47,181.46,3.01]
[1753022977040,5.54325743,181.47,181.46,3.01]
[1753022977651,0.03515743,181.47,181.46,3.01]
[1753022979149,5.54325743,181.47,181.46,3.01]
[1753022979646,0.03515743,181.47,181.46,3.01]
[1753022981750,0.03515743,181.47,181.46,8.5184]
[1753022982453,0.03515743,181.47,181.46,3.01]
[1753022982749,0.03515743,181.47,181.35,4.57600866]
[1753022982750,0.48,181.44,181.35,3.01]
[1753022982953,2.29154678,181.4,181.35,3.01]
[1753022983152,2.29154678,181.4,181.32,2.29154678]
[1753022983153,2.29154678,181.4,181.39,8.5203]
[1753022984148,2.29154678,181.43,181.41,3.01]
[1753022985052,2.29154678,181.43,181.41,8.5198]
[1753022985354,2.29154678,181.43,181.42,3.01]
[1753022986148,7.80084678,181.43,181.42,3.01]
[1753022987661,5.54397773,181.44,181.42,3.01]
[1753022987856,2.29154678,181.43,181.42,3.01]
[1753022988763,0.03487773,181.44,181.42,3.01]
[1753022988957,2.29154678,181.43,181.42,3.01]
[1753022989654,7.80084678,181.43,181.42,3.01]
[1753022990960,2.29154678,181.43,181.42,3.01]
[1753022991259,0.03487773,181.44,181.42,3.01]
[1753022991459,2.29154678,181.43,181.42,3.01]
[1753022992165,10.05957064,181.43,181.42,3.01]
[1753022992365,2.77154678,181.43,181.37,3.01]
[1753022992761,5.5096,181.42,181.4,3.01]
[1753022992959,2.29154678,181.43,181.4,3.01]
[1753022993260,2.29154678,181.43,181.4,8.5201]
[1753022993458,2.29154678,181.43,181.41,3.01]
[1753022994562,7.80094678,181.43,181.41,3.01]
[1753022995565,2.29154678,181.43,181.41,3.01]
[1753022995764,2.29154678,181.42,181.41,3.01]
[1753022997958,0.03487773,181.44,181.41,3.01]
[1753022998164,2.29154678,181.43,181.42,3.14]
[1753022999761,0.03487773,181.44,181.42,3.14]
[1753023000662,0.03487773,181.44,181.43,8.6493]
[1753023001064,0.03487773,181.44,181.43,3.14]
[1753023002264,0.03487773,181.44,181.43,8.6493]
[1753023006473,186.313807,181.5,181.39,4.57600866]
[1753023006474,185.833807,181.5,181.48,3.14]
[1753023006671,2.29154678,181.49,181.48,3.14]
[1753023007172,5.06952944,181.49,181.48,3.14]
[1753023007468,5.06952944,181.49,181.46,3.14]
[1753023007677,2.29154678,181.47,181.4,4.57600866]
[1753023008065,2.29154678,181.47,181.45,5.5084]
[1753023008373,2.29154678,181.47,181.46,3.14]
[1753023010373,2.29154678,181.47,181.46,8.6484]
[1753023010878,2.29154678,181.47,181.46,3.14]
[1753023011173,5.06909675,181.47,181.4,3.14]
[1753023011372,2.29154678,181.44,181.4,3.14]
[1753023011567,2.29154678,181.45,181.39,4.57600866]
[1753023011770,2.29154678,181.45,181.4,3.14]
[1753023011973,2.29154678,181.45,181.44,5.5088]
[1753023012274,2.29154678,181.45,181.44,8.6488]
[1753023015675,2.29154678,181.45,181.44,3.14]
[1753023017179,2.29154678,181.45,181.44,8.649]
[1753023019875,2.29154678,181.47,181.46,5.5082]
[1753023020080,2.29154678,181.47,181.46,8.6482]
[1753023020676,2.29154678,181.48,181.47,3.14]
[1753023020882,4.53557764,181.48,181.47,3.14]
[1753023021083,10.56357764,181.48,181.44,5.5089]
[1753023021382,10.56357764,181.48,181.44,8.6489]
[1753023021383,2.29154678,181.45,181.44,8.6489]
[1753023021980,2.29154678,181.45,181.44,3.14]
[1753023023383,0.52,181.47,181.45,3.14]
[1753023023584,2.29154678,181.46,181.45,3.14]
[1753023023785,7.79994678,181.46,181.45,3.14]
[1753023024082,0.51,181.45,181.44,3.14]
[1753023024279,0.51,181.44,181.37,3.14]
[1753023024577,2.24191501,181.43,181.42,3.14]
[1753023025777,4.53346179,181.43,181.42,3.14]
[1753023026283,5.04346179,181.43,181.42,3.14]
[1753023026685,10.55276179,181.43,181.42,3.14]
[1753023027983,10.04276179,181.43,181.42,3.14]
[1753023028184,4.53346179,181.43,181.42,3.14]
[1753023028383,5.05346179,181.43,181.42,3.14]
[1753023028683,0.52,181.42,181.41,3.16487117]
[1753023028982,7.80104678,181.43,181.41,3.16487117]
[1753023029381,6.029,181.44,181.41,8.67447117]
[1753023029587,2.29154678,181.42,181.41,8.67447117]
[1753023032585,5.5088,181.45,181.42,3.13]
[1753023032789,2.29154678,181.43,181.42,3.13]
[1753023032988,2.29154678,181.43,181.42,8.6396]
[1753023033288,2.29154678,181.45,181.42,3.13]
[1753023033891,2.29154678,181.45,181.44,3.13]
[1753023034087,4.53174693,181.45,181.44,3.13]
[1753023034983,4.53174693,181.45,181.44,8.639]
[1753023035185,2.29154678,181.46,181.44,3.13]
[1753023035385,101.8,181.52,181.44,3.13]
[1753023035386,2.29154678,181.49,181.44,3.13]
[1753023035882,2.29154678,181.5,181.44,3.13]
[1753023036091,2.81,181.53,181.52,3.13]
[1753023036280,7.34375007,181.53,181.52,3.13]
[1753023036487,2.81,181.52,181.44,3.13]
[1753023036685,2.29154678,181.47,181.46,5.5082]
[1753023036888,2.29154678,181.47,181.41,4.57600866]
[1753023037082,2.29154678,181.47,181.45,5.5085]
[1753023037284,2.29154678,181.47,181.46,3.13]
[1753023037890,2.29154678,181.47,181.46,8.6384]
[1753023039780,2.29154678,181.47,181.46,3.13]
[1753023040989,2.29154678,181.47,181.45,5.5086]
[1753023040990,3.11,181.46,181.39,4.57600866]
[1753023041185,2.29154678,181.43,181.36,4.57600866]
[1753023041387,2.29154678,181.41,181.36,4.57600866]
[1753023041686,2.29154678,181.41,181.4,5.5102]
[1753023041883,3.11,181.43,181.36,4.57600866]
[1753023042089,2.29154678,181.42,181.36,4.57600866]
[1753023043088,3.11,181.43,181.41,5.5097]
[1753023043283,2.29154678,181.42,181.41,5.5097]
[1753023043786,2.29154678,181.42,181.41,8.6397]
[1753023043985,2.29154678,181.43,181.42,8.6396]
[1753023044184,5.5084,181.46,181.42,8.6396]
[1753023044387,2.29154678,181.46,181.43,5.5092]
[1753023044586,2.29154678,181.46,181.44,3.13]
[1753023044779,5.40154678,181.46,181.4,0.03488841]
[1753023044980,5.40154678,181.46,181.45,3.13]
[1753023046292,2.29154678,181.47,181.45,3.13]
[1753023047593,2.29154678,181.48,181.46,5.5082]
[1753023047893,5.40154678,181.48,181.47,3.13]
[1753023048093,7.64152855,181.48,181.47,3.13]
[1753023049286,3.11,181.47,181.46,3.13]
[1753023049792,3.11,181.47,181.46,8.6384]
[1753023050893,3.11,181.46,181.44,3.13]
[1753023051098,2.29154678,181.53,181.4,3.13]
[1753023051099,2.29154678,181.45,181.4,3.13]
[1753023051303,5.40154678,181.43,181.4,3.13]
[1753023051788,2.29154678,181.43,181.4,3.13]
[1753023052391,5.40154678,181.43,181.42,3.13]
[1753023052593,2.29154678,181.43,181.42,3.13]
[1753023052797,2.29154678,181.44,181.43,5.5093]
[1753023053001,2.29154678,181.44,181.43,8.6393]
[1753023054902,2.29154678,181.44,181.43,5.5093]
[1753023055505,2.29154678,181.44,181.43,8.6393]
[1753023056004,2.29154678,181.44,181.36,15.59860866]
[1753023056005,10.10309356,181.44,181.36,4.57600866]
[1753023056201,2.29154678,181.37,181.34,3.13]
[1753023056506,5.40154678,181.35,181.34,3.13]
[1753023056702,2.29154678,181.35,181.34,3.13]
[1753023059004,5.36154678,181.35,181.34,3.13]
[1753023060506,6.07067019,181.46,181.28,4.5467802]
[1753023060707,2.29154678,181.35,181.32,5.5123]
[1753023060906,2.29154678,181.35,181.33,3.24]
[1753023061107,2.29154678,181.34,181.33,3.24]
[1753023061408,2.29154678,181.34,181.33,8.7522]
[1753023061807,2.29154678,181.34,181.33,5.5122]
[1753023062505,2.29154678,181.34,181.33,3.24]
[1753023063913,2.29154678,181.34,181.33,8.7523]
[1753023065620,3.07,181.36,181.35,3.24]
[1753023065821,5.36154678,181.36,181.35,3.24]
[1753023066510,3.07,181.36,181.35,3.24]
[1753023066715,2.29154678,181.36,181.35,8.7517]
[1753023067613,5.36154678,181.36,181.35,3.24]
[1753023067817,2.29154678,181.36,181.35,3.24]
[1753023068123,5.36154678,181.36,181.35,3.24]
[1753023068317,5.36154678,181.33,181.32,5.54716198]
[1753023068821,5.36154678,181.33,181.32,5.5123]
[1753023070017,3.07,181.33,181.32,5.5123]
[1753023070321,2.29154678,181.34,181.33,5.5123]
[1753023070522,5.36154678,181.34,181.28,4.5467802]
[1753023070713,3.07,181.33,181.29,3.24]
[1753023071821,3.07,181.33,181.3,3.24]
[1753023072019,3.07,181.31,181.28,4.5467802]
[1753023072223,10.87504678,181.29,181.28,4.5467802]
[1753023075028,5.36154678,181.29,181.28,4.5467802]
[1753023075220,5.36154678,181.29,181.27,0.03483054]
[1753023075417,3.07,181.28,181.17,370.38]
[1753023075617,5.36154678,181.24,181.22,5.5154]
[1753023075820,3.07,181.23,181.22,8.7554]
[1753023076328,2.29154678,181.24,181.23,5.5153]
[1753023076526,3.07,181.26,181.23,3.24]
[1753023076724,2.29154678,181.26,181.23,3.24]
[1753023076925,5.36154678,181.26,181.24,3.24]
[1753023077127,3.07,181.25,181.24,3.24]
[1753023077828,3.07,181.25,181.24,8.755]
[1753023078923,2.32708723,181.26,181.25,5.5147]
[1753023079121,5.39708723,181.26,181.25,8.7547]
[1753023079827,3.07,181.25,181.19,3.24]
[1753023080027,2.32708723,181.26,181.1,4.57600866]
[1753023080028,3.07,181.2,181.1,4.57600866]
[1753023080227,2.29154678,181.21,181.2,5.5163]
[1753023080426,2.29154678,181.21,181.2,8.7563]
[1753023080636,3.07,181.22,181.21,3.24]
[1753023080824,2.29154678,181.23,181.22,8.7554]
[1753023081433,3.07,181.24,181.22,8.7554]
[1753023081434,2.29154678,181.25,181.22,3.24]
[1753023082134,2.29154678,181.25,181.18,2.29154678]
[1753023082135,2.29154678,181.26,181.25,8.7547]
[1753023082335,3.07,181.27,181.26,3.24]
[1753023082533,3.07,181.27,181.19,3.24]
[1753023083234,2.29154678,181.26,181.19,3.24]
[1753023083434,5.36154678,181.26,181.19,3.24]
[1753023084534,5.36154678,181.26,181.25,8.7546]
[1753023086434,0.0348341,181.27,181.26,8.7544]
[1753023086934,3.07,181.29,181.27,5.5139]
[1753023087135,5.36154678,181.29,181.21,3.24]
[1753023087533,5.36154678,181.29,181.27,5.5141]
[1753023087735,5.36154678,181.29,181.21,3.24]
[1753023087937,2.29154678,181.27,181.21,3.24]
[1753023088141,3.24,181.26,181.19,2.98]
[1753023088640,3.24,181.26,181.24,5.5149]
[1753023088840,3.24,181.26,181.25,2.98]
[1753023094942,3.24,181.15,181.1,2.89572536]
[1753023095144,4.58309356,181.11,181.01,2.98]
[1753023095337,2.29154678,181.08,180.98,2.98]
[1753023095538,2.29154678,181.02,180.98,2.98]
[1753023095846,2.29154678,181.04,180.98,2.98]
[1753023096040,373.01154678,181.17,180.98,2.98]